[Event "Titled Tuesday Blitz November 29 Early 2022"]
[White "Tsydypov, Zhamsaran"]
[Black "Van Osch, Mees"]
[WhiteFideId "4108566"]
[BlackFideId "1035967"]
[WhiteElo "2591"]
[BlackElo "2324"]
[Result "1-0"]
[Round "03"]
[TimeControl "180+1"]
[Date "2022.11.30"]
[WhiteClock "0:02:38"]
[BlackClock "0:01:39"]

1. b3 {[%clk 0:03:00]}  e5 {[%clk 0:02:54]} 2. Bb2 {[%clk 0:03:00]}  Nc6 {[%clk 0:02:55]} 3. e3 {[%clk 0:03:00]}  Nf6 {[%clk 0:02:49]} 4. Bb5 {[%clk 0:02:59]}  Bd6 {[%clk 0:02:49]} 5. Ne2 {[%clk 0:02:59]}  O-O {[%clk 0:02:43]} 6. Bxc6 {[%clk 0:02:58]}  dxc6 {[%clk 0:02:42]} 7. Ng3 {[%clk 0:02:58]}  Bg4 {[%clk 0:02:38]} 8. f3 {[%clk 0:02:53]}  Be6 {[%clk 0:02:35]} 9. O-O {[%clk 0:02:53]}  a5 {[%clk 0:02:31]} 10. a4 {[%clk 0:02:51]}  g6 {[%clk 0:02:26]} 11. Nc3 {[%clk 0:02:52]}  Nd5 {[%clk 0:02:25]} 12. Nce4 {[%clk 0:02:49]}  Be7 {[%clk 0:02:24]} 13. Bxe5 {[%clk 0:02:49]}  f5 {[%clk 0:02:23]} 14. Nf2 {[%clk 0:02:49]}  Qd7 {[%clk 0:02:19]} 15. Nd3 {[%clk 0:02:49]}  Rad8 {[%clk 0:02:18]} 16. Bd4 {[%clk 0:02:45]}  b6 {[%clk 0:02:08]} 17. Ne5 {[%clk 0:02:44]}  Qe8 {[%clk 0:02:08]} 18. Qe2 {[%clk 0:02:42]}  c5 {[%clk 0:02:08]} 19. Bb2 {[%clk 0:02:42]}  Nb4 {[%clk 0:02:09]} 20. Rac1 {[%clk 0:02:41]}  Bf6 {[%clk 0:02:08]} 21. f4 {[%clk 0:02:41]}  Nc6 {[%clk 0:02:06]} 22. Nxc6 {[%clk 0:02:40]}  Qxc6 {[%clk 0:02:07]} 23. Bxf6 {[%clk 0:02:40]}  Rxf6 {[%clk 0:02:08]} 24. d3 {[%clk 0:02:38]}  c4 {[%clk 0:02:01]} 25. dxc4 {[%clk 0:02:37]}  Bf7 {[%clk 0:02:01]} 26. Rcd1 {[%clk 0:02:37]}  Re8 {[%clk 0:01:59]} 27. Rd3 {[%clk 0:02:37]}  Rfe6 {[%clk 0:01:58]} 28. Rfd1 {[%clk 0:02:37]}  Kg7 {[%clk 0:01:57]} 29. Qd2 {[%clk 0:02:37]}  R8e7 {[%clk 0:01:57]} 30. Qc3+ {[%clk 0:02:38]}  Kg8 {[%clk 0:01:54]} 31. Rd8+ {[%clk 0:02:38]}  Re8 {[%clk 0:01:53]} 32. Rxe8+ {[%clk 0:02:38]}  Bxe8 {[%clk 0:01:52]} 33. Kf2 {[%clk 0:02:38]}  Qc5 {[%clk 0:01:44]} 34. Ne2 {[%clk 0:02:37]}  Rd6 {[%clk 0:01:38]} 35. Rxd6 {[%clk 0:02:37]}  Qxd6 {[%clk 0:01:38]} 36. Qd4 {[%clk 0:02:37]}  Qe6 {[%clk 0:01:35]} 37. Nc3 {[%clk 0:02:37]}  Bc6 {[%clk 0:01:35]} 38. Nd5 {[%clk 0:02:36]}  Bxd5 {[%clk 0:01:33]} 39. Qxd5 {[%clk 0:02:37]}  Qxd5 {[%clk 0:01:33]} 40. cxd5 {[%clk 0:02:37]}  Kf7 {[%clk 0:01:34]} 41. e4 {[%clk 0:02:36]}  fxe4 {[%clk 0:01:34]} 42. Ke3 {[%clk 0:02:37]}  Ke7 {[%clk 0:01:35]} 43. Kxe4 {[%clk 0:02:37]}  Kd6 {[%clk 0:01:35]} 44. Kd4 {[%clk 0:02:37]}  Ke7 {[%clk 0:01:33]} 45. g4 {[%clk 0:02:37]}  Kd6 {[%clk 0:01:34]} 46. f5 {[%clk 0:02:37]}  gxf5 {[%clk 0:01:35]} 47. gxf5 {[%clk 0:02:37]}  Ke7 {[%clk 0:01:36]} 48. Ke5 {[%clk 0:02:38]}  Kf7 {[%clk 0:01:37]} 49. d6 {[%clk 0:02:36]}  cxd6+ {[%clk 0:01:37]} 50. Kxd6 {[%clk 0:02:37]}  Kf6 {[%clk 0:01:38]} 51. Kc6 {[%clk 0:02:38]}  b5 {[%clk 0:01:39]} 52. axb5 {[%clk 0:02:38]} 1-0


[Site "https://www.chess.com"]

[Event "Titled Tuesday Blitz November 29 Early 2022"]
[White "Tworuszka, Michal"]
[Black "Broca Jimenez, Fernando"]
[WhiteFideId "1117858"]
[BlackFideId "5104742"]
[WhiteElo "2413"]
[BlackElo "2062"]
[Result "1-0"]
[Round "03"]
[TimeControl "180+1"]
[Date "2022.11.30"]
[WhiteClock "0:00:15"]
[BlackClock "0:00:13"]

1. d4 {[%clk 0:03:00]}  Nf6 {[%clk 0:02:57]} 2. c4 {[%clk 0:03:00]}  e6 {[%clk 0:02:57]} 3. Nc3 {[%clk 0:02:59]}  Bb4 {[%clk 0:02:57]} 4. f3 {[%clk 0:02:59]}  d5 {[%clk 0:02:52]} 5. a3 {[%clk 0:02:58]}  Bxc3+ {[%clk 0:02:48]} 6. bxc3 {[%clk 0:02:59]}  O-O {[%clk 0:02:45]} 7. cxd5 {[%clk 0:02:58]}  exd5 {[%clk 0:02:45]} 8. e3 {[%clk 0:02:57]}  Re8 {[%clk 0:02:44]} 9. Bd3 {[%clk 0:02:57]}  c5 {[%clk 0:02:42]} 10. Ne2 {[%clk 0:02:57]}  Nc6 {[%clk 0:02:40]} 11. g4 {[%clk 0:02:37]}  Nxg4 {[%clk 0:02:16]} 12. fxg4 {[%clk 0:02:34]}  Bxg4 {[%clk 0:02:17]} 13. O-O {[%clk 0:02:19]}  cxd4 {[%clk 0:02:12]} 14. cxd4 {[%clk 0:02:18]}  Qg5 {[%clk 0:01:29]} 15. Kh1 {[%clk 0:02:15]}  Qh5 {[%clk 0:01:25]} 16. Qe1 {[%clk 0:01:41]}  Bf3+ {[%clk 0:01:10]} 17. Kg1 {[%clk 0:01:31]}  Qg4+ {[%clk 0:00:59]} 18. Ng3 {[%clk 0:01:05]}  Nxd4 {[%clk 0:00:38]} 19. Qf2 {[%clk 0:01:02]}  Nb3 {[%clk 0:00:34]} 20. Rb1 {[%clk 0:01:01]}  Nxc1 {[%clk 0:00:33]} 21. Rbxc1 {[%clk 0:01:02]}  Be4 {[%clk 0:00:24]} 22. Bxe4 {[%clk 0:00:50]}  dxe4 {[%clk 0:00:20]} 23. Qxf7+ {[%clk 0:00:46]}  Kh8 {[%clk 0:00:20]} 24. Rf4 {[%clk 0:00:28]}  Qe6 {[%clk 0:00:13]} 25. Rc7 {[%clk 0:00:17]}  Qxf7 {[%clk 0:00:12]} 26. Rfxf7 {[%clk 0:00:18]}  Rg8 {[%clk 0:00:12]} 27. Rxb7 {[%clk 0:00:16]}  Rac8 {[%clk 0:00:12]} 28. Nxe4 {[%clk 0:00:15]}  Rc3 {[%clk 0:00:13]} 29. Nxc3 {[%clk 0:00:15]} 1-0


[Site "https://www.chess.com"]

[Event "Titled Tuesday Blitz November 29 Early 2022"]
[White "Valle Maytin, Luis Enrique"]
[Black "Hrabinska, Myroslava"]
[WhiteFideId "3503666"]
[BlackFideId "14109190"]
[WhiteElo "2225"]
[BlackElo "2171"]
[Result "0-1"]
[Round "03"]
[TimeControl "180+1"]
[Date "2022.11.30"]
[WhiteClock "0:00:04"]
[BlackClock "0:00:08"]

1. e4 {[%clk 0:03:00]}  c5 {[%clk 0:02:59]} 2. Nf3 {[%clk 0:03:00]}  e6 {[%clk 0:02:56]} 3. d4 {[%clk 0:03:01]}  cxd4 {[%clk 0:02:56]} 4. Nxd4 {[%clk 0:03:02]}  a6 {[%clk 0:02:57]} 5. Nc3 {[%clk 0:03:02]}  b5 {[%clk 0:02:55]} 6. a3 {[%clk 0:03:02]}  Bb7 {[%clk 0:02:53]} 7. Be3 {[%clk 0:03:02]}  Qc7 {[%clk 0:02:46]} 8. f4 {[%clk 0:02:50]}  Nc6 {[%clk 0:02:30]} 9. Be2 {[%clk 0:02:30]}  Nxd4 {[%clk 0:02:19]} 10. Qxd4 {[%clk 0:02:31]}  Rc8 {[%clk 0:02:15]} 11. Bf3 {[%clk 0:02:16]}  d6 {[%clk 0:01:35]} 12. O-O {[%clk 0:02:00]}  Nf6 {[%clk 0:01:28]} 13. Rad1 {[%clk 0:01:51]}  e5 {[%clk 0:01:05]} 14. Qd2 {[%clk 0:01:34]}  Be7 {[%clk 0:01:02]} 15. f5 {[%clk 0:01:09]}  O-O {[%clk 0:00:50]} 16. Qf2 {[%clk 0:01:09]}  Qc4 {[%clk 0:00:42]} 17. Be2 {[%clk 0:00:42]}  Qc7 {[%clk 0:00:34]} 18. Bf3 {[%clk 0:00:34]}  Qc4 {[%clk 0:00:32]} 19. Be2 {[%clk 0:00:34]}  Qc7 {[%clk 0:00:32]} 20. Bb6 {[%clk 0:00:33]}  Qc6 {[%clk 0:00:28]} 21. Bf3 {[%clk 0:00:31]}  Bd8 {[%clk 0:00:20]} 22. Bxd8 {[%clk 0:00:28]}  Rfxd8 {[%clk 0:00:21]} 23. Rfe1 {[%clk 0:00:24]}  Qc4 {[%clk 0:00:20]} 24. g4 {[%clk 0:00:09]}  Qc5 {[%clk 0:00:20]} 25. Qxc5 {[%clk 0:00:09]}  dxc5 {[%clk 0:00:20]} 26. g5 {[%clk 0:00:09]}  Nd7 {[%clk 0:00:17]} 27. Rd6 {[%clk 0:00:08]}  Nb8 {[%clk 0:00:15]} 28. Red1 {[%clk 0:00:08]}  Nc6 {[%clk 0:00:14]} 29. Rxd8+ {[%clk 0:00:07]}  Rxd8 {[%clk 0:00:13]} 30. Rxd8+ {[%clk 0:00:07]}  Nxd8 {[%clk 0:00:14]} 31. Nb1 {[%clk 0:00:04]}  f6 {[%clk 0:00:13]} 32. gxf6 {[%clk 0:00:04]}  gxf6 {[%clk 0:00:13]} 33. c3 {[%clk 0:00:05]}  Kf7 {[%clk 0:00:11]} 34. Kf2 {[%clk 0:00:05]}  Ke7 {[%clk 0:00:11]} 35. Ke3 {[%clk 0:00:06]}  Nf7 {[%clk 0:00:11]} 36. Nd2 {[%clk 0:00:07]}  Ng5 {[%clk 0:00:11]} 37. h4 {[%clk 0:00:07]}  Nf7 {[%clk 0:00:11]} 38. Nb3 {[%clk 0:00:06]}  c4 {[%clk 0:00:08]} 39. Nd2 {[%clk 0:00:03]}  Nd6 {[%clk 0:00:07]} 40. Nf1 {[%clk 0:00:03]}  Bc6 {[%clk 0:00:06]} 41. Ng3 {[%clk 0:00:03]}  Be8 {[%clk 0:00:06]} 42. h5 {[%clk 0:00:03]}  Bd7 {[%clk 0:00:05]} 43. h6 {[%clk 0:00:03]}  Be8 {[%clk 0:00:05]} 44. Be2 {[%clk 0:00:02]}  Nf7 {[%clk 0:00:05]} 45. Bf3 {[%clk 0:00:02]}  Nxh6 {[%clk 0:00:05]} 46. Ne2 {[%clk 0:00:03]}  Nf7 {[%clk 0:00:05]} 47. Nc1 {[%clk 0:00:03]}  Bc6 {[%clk 0:00:06]} 48. b3 {[%clk 0:00:04]}  Ng5 {[%clk 0:00:06]} 49. bxc4 {[%clk 0:00:03]}  bxc4 {[%clk 0:00:07]} 50. Ne2 {[%clk 0:00:01]}  Nxf3 {[%clk 0:00:06]} 51. Kxf3 {[%clk 0:00:02]}  h5 {[%clk 0:00:06]} 52. Ke3 {[%clk 0:00:03]}  Kf7 {[%clk 0:00:05]} 53. Ng3 {[%clk 0:00:03]}  Ke7 {[%clk 0:00:03]} 54. Nf1 {[%clk 0:00:04]}  Be8 {[%clk 0:00:03]} 55. Nd2 {[%clk 0:00:03]}  Bf7 {[%clk 0:00:03]} 56. Kf3 {[%clk 0:00:03]}  Kd6 {[%clk 0:00:03]} 57. Kg3 {[%clk 0:00:04]}  Kc5 {[%clk 0:00:04]} 58. Kh4 {[%clk 0:00:04]}  Kb5 {[%clk 0:00:05]} 59. Kh3 {[%clk 0:00:02]}  Ka4 {[%clk 0:00:05]} 60. Kg3 {[%clk 0:00:02]}  Kxa3 {[%clk 0:00:06]} 61. Kh4 {[%clk 0:00:03]}  Kb2 {[%clk 0:00:07]} 62. Nf3 {[%clk 0:00:02]}  Kxc3 {[%clk 0:00:07]} 63. Nxe5 {[%clk 0:00:01]}  fxe5 {[%clk 0:00:07]} 64. Kg5 {[%clk 0:00:02]}  Kd4 {[%clk 0:00:07]} 65. Kf6 {[%clk 0:00:03]}  Be8 {[%clk 0:00:07]} 66. Ke7 {[%clk 0:00:03]}  Bc6 {[%clk 0:00:07]} 67. f6 {[%clk 0:00:03]}  c3 {[%clk 0:00:05]} 68. f7 {[%clk 0:00:04]}  c2 {[%clk 0:00:06]} 69. f8=Q {[%clk 0:00:04]}  c1=Q {[%clk 0:00:06]} 70. Qf2+ {[%clk 0:00:05]}  Kxe4 {[%clk 0:00:05]} 71. Qg2+ {[%clk 0:00:05]}  Kd4 {[%clk 0:00:06]} 72. Qf2+ {[%clk 0:00:05]}  Kc4 {[%clk 0:00:06]} 73. Qe2+ {[%clk 0:00:05]}  Kc5 {[%clk 0:00:06]} 74. Qxe5+ {[%clk 0:00:05]}  Kb6 {[%clk 0:00:06]} 75. Qb8+ {[%clk 0:00:05]}  Bb7 {[%clk 0:00:05]} 76. Qd6+ {[%clk 0:00:04]}  Qc6 {[%clk 0:00:05]} 77. Qb4+ {[%clk 0:00:05]}  Qb5 {[%clk 0:00:05]} 78. Qd6+ {[%clk 0:00:05]}  Qc6 {[%clk 0:00:05]} 79. Qb4+ {[%clk 0:00:05]}  Ka7 {[%clk 0:00:06]} 80. Qd4+ {[%clk 0:00:04]}  Qb6 {[%clk 0:00:06]} 81. Qe5 {[%clk 0:00:04]}  a5 {[%clk 0:00:07]} 82. Qxh5 {[%clk 0:00:04]}  Qb4+ {[%clk 0:00:07]} 83. Kd7 {[%clk 0:00:03]}  a4 {[%clk 0:00:07]} 84. Qe5 {[%clk 0:00:01]}  a3 {[%clk 0:00:07]} 85. Qe3+ {[%clk 0:00:02]}  Ka6 {[%clk 0:00:07]} 86. Qe2+ {[%clk 0:00:02]}  Qb5+ {[%clk 0:00:07]} 87. Qxb5+ {[%clk 0:00:02]}  Kxb5 {[%clk 0:00:08]} 88. Kc7 {[%clk 0:00:03]}  a2 {[%clk 0:00:08]} 89. Kxb7 {[%clk 0:00:04]}  a1=Q {[%clk 0:00:08]} 0-1


[Site "https://www.chess.com"]

[Event "Titled Tuesday Blitz November 29 Early 2022"]
[White "Vargas, Mauricio"]
[Black "Ljukin, Sergei"]
[WhiteFideId "4404572"]
[BlackFideId "14102200"]
[WhiteElo "2025"]
[BlackElo "2312"]
[Result "0-1"]
[Round "03"]
[TimeControl "180+1"]
[Date "2022.11.30"]
[WhiteClock "0:00:02"]
[BlackClock "0:00:04"]

1. e4 {[%clk 0:02:05]}  e6 {[%clk 0:02:57]} 2. f4 {[%clk 0:02:05]}  d5 {[%clk 0:02:57]} 3. e5 {[%clk 0:02:03]}  c5 {[%clk 0:02:57]} 4. Nf3 {[%clk 0:02:04]}  Nc6 {[%clk 0:02:58]} 5. Bb5 {[%clk 0:02:04]}  Qb6 {[%clk 0:02:55]} 6. Bxc6+ {[%clk 0:02:04]}  bxc6 {[%clk 0:02:56]} 7. O-O {[%clk 0:02:04]}  Nh6 {[%clk 0:02:55]} 8. Nc3 {[%clk 0:02:02]}  Ng4 {[%clk 0:02:47]} 9. Na4 {[%clk 0:01:59]}  Qa5 {[%clk 0:02:38]} 10. b3 {[%clk 0:02:00]}  Ba6 {[%clk 0:02:30]} 11. d3 {[%clk 0:02:00]}  Bb5 {[%clk 0:02:27]} 12. Bd2 {[%clk 0:01:56]}  Qc7 {[%clk 0:02:24]} 13. Nb2 {[%clk 0:01:29]}  h5 {[%clk 0:02:15]} 14. c4 {[%clk 0:01:28]}  Ba6 {[%clk 0:02:13]} 15. Qe1 {[%clk 0:01:26]}  Be7 {[%clk 0:02:05]} 16. Ba5 {[%clk 0:01:24]}  Qd7 {[%clk 0:01:55]} 17. Na4 {[%clk 0:01:24]}  O-O {[%clk 0:01:40]} 18. h3 {[%clk 0:01:22]}  Nh6 {[%clk 0:01:39]} 19. Bd2 {[%clk 0:01:01]}  dxc4 {[%clk 0:01:16]} 20. dxc4 {[%clk 0:00:59]}  Nf5 {[%clk 0:01:16]} 21. Rd1 {[%clk 0:00:56]}  h4 {[%clk 0:00:45]} 22. Bb4 {[%clk 0:00:44]}  Qxd1 {[%clk 0:00:24]} 23. Qxd1 {[%clk 0:00:43]}  cxb4 {[%clk 0:00:17]} 24. Qd7 {[%clk 0:00:31]}  Rfd8 {[%clk 0:00:13]} 25. Qxc6 {[%clk 0:00:26]}  Rab8 {[%clk 0:00:10]} 26. Qxa6 {[%clk 0:00:20]}  Rd3 {[%clk 0:00:08]} 27. Qxa7 {[%clk 0:00:19]}  Rbd8 {[%clk 0:00:07]} 28. Qf2 {[%clk 0:00:11]}  Re3 {[%clk 0:00:05]} 29. g4 {[%clk 0:00:10]}  hxg3 {[%clk 0:00:04]} 30. Qxg3 {[%clk 0:00:09]}  Nxg3 {[%clk 0:00:04]} 31. Kf2 {[%clk 0:00:06]}  Nf5 {[%clk 0:00:04]} 32. Nh4 {[%clk 0:00:05]}  Re4 {[%clk 0:00:04]} 33. Nxf5 {[%clk 0:00:04]}  exf5 {[%clk 0:00:04]} 34. Kf3 {[%clk 0:00:04]}  Rd3+ {[%clk 0:00:04]} 35. Kf2 {[%clk 0:00:03]}  Bh4+ {[%clk 0:00:04]} 36. Kg2 {[%clk 0:00:02]}  Rg3+ {[%clk 0:00:04]} 0-1


[Site "https://www.chess.com"]

[Event "Titled Tuesday Blitz November 29 Early 2022"]
[White "Vlassov, Nikolai"]
[Black "Indjic, Aleksandar"]
[WhiteFideId "4103360"]
[BlackFideId "911925"]
[WhiteElo "2324"]
[BlackElo "2592"]
[Result "0-1"]
[Round "03"]
[TimeControl "180+1"]
[Date "2022.11.30"]
[WhiteClock "0:00:06"]
[BlackClock "0:00:34"]

1. e4 {[%clk 0:02:55]}  c5 {[%clk 0:02:59]} 2. c3 {[%clk 0:02:54]}  d5 {[%clk 0:02:59]} 3. exd5 {[%clk 0:02:55]}  Nf6 {[%clk 0:02:59]} 4. d4 {[%clk 0:02:56]}  Nxd5 {[%clk 0:02:52]} 5. dxc5 {[%clk 0:02:55]}  e6 {[%clk 0:02:51]} 6. b4 {[%clk 0:02:26]}  a5 {[%clk 0:02:49]} 7. Bd2 {[%clk 0:02:22]}  axb4 {[%clk 0:02:41]} 8. Bb5+ {[%clk 0:02:19]}  Bd7 {[%clk 0:02:40]} 9. Bxd7+ {[%clk 0:02:10]}  Nxd7 {[%clk 0:02:40]} 10. c4 {[%clk 0:02:02]}  Qf6 {[%clk 0:02:14]} 11. cxd5 {[%clk 0:02:02]}  Bxc5 {[%clk 0:02:12]} 12. Nf3 {[%clk 0:01:58]}  Qxa1 {[%clk 0:02:11]} 13. dxe6 {[%clk 0:01:57]}  fxe6 {[%clk 0:02:10]} 14. O-O {[%clk 0:01:54]}  Qxa2 {[%clk 0:02:09]} 15. Bxb4 {[%clk 0:01:34]}  Bxb4 {[%clk 0:02:06]} 16. Qd4 {[%clk 0:01:34]}  Be7 {[%clk 0:01:53]} 17. Qxg7 {[%clk 0:01:32]}  Bf6 {[%clk 0:01:53]} 18. Qg4 {[%clk 0:01:31]}  Qd5 {[%clk 0:01:49]} 19. Nbd2 {[%clk 0:01:27]}  Qf5 {[%clk 0:01:47]} 20. Qb4 {[%clk 0:01:23]}  Rg8 {[%clk 0:01:35]} 21. Qxb7 {[%clk 0:01:02]}  Rb8 {[%clk 0:01:29]} 22. Qc6 {[%clk 0:01:02]}  Qd5 {[%clk 0:01:26]} 23. Qc2 {[%clk 0:01:01]}  Rb2 {[%clk 0:01:23]} 24. Qxh7 {[%clk 0:01:00]}  Rg7 {[%clk 0:01:16]} 25. Qh8+ {[%clk 0:00:57]}  Ke7 {[%clk 0:01:15]} 26. Qh3 {[%clk 0:00:54]}  Rxd2 {[%clk 0:01:13]} 27. Nxd2 {[%clk 0:00:54]}  Qxd2 {[%clk 0:01:14]} 28. Qa3+ {[%clk 0:00:40]}  Kf7 {[%clk 0:01:12]} 29. Qa4 {[%clk 0:00:29]}  Ne5 {[%clk 0:01:09]} 30. Rd1 {[%clk 0:00:19]}  Qe2 {[%clk 0:01:04]} 31. Rb1 {[%clk 0:00:12]}  Rg4 {[%clk 0:00:46]} 32. Qa7+ {[%clk 0:00:11]}  Be7 {[%clk 0:00:45]} 33. h3 {[%clk 0:00:10]}  Rg7 {[%clk 0:00:39]} 34. Qb7 {[%clk 0:00:08]}  Nf3+ {[%clk 0:00:34]} 35. Kh1 {[%clk 0:00:06]}  Ne1 {[%clk 0:00:34]} 0-1


[Site "https://www.chess.com"]

[Event "Titled Tuesday Blitz November 29 Early 2022"]
[White "Weetik, Vjacheslav"]
[Black "Sadhwani, Raunak"]
[WhiteFideId "4153472"]
[BlackFideId "35093487"]
[WhiteElo "2469"]
[BlackElo "2656"]
[Result "0-1"]
[Round "03"]
[TimeControl "180+1"]
[Date "2022.11.30"]
[WhiteClock "0:00:03"]
[BlackClock "0:00:08"]

1. d4 {[%clk 0:02:56]}  Nf6 {[%clk 0:03:00]} 2. Nf3 {[%clk 0:02:56]}  b6 {[%clk 0:02:58]} 3. Bg5 {[%clk 0:02:49]}  Ne4 {[%clk 0:02:56]} 4. Bh4 {[%clk 0:02:48]}  Bb7 {[%clk 0:02:57]} 5. Nbd2 {[%clk 0:02:47]}  g6 {[%clk 0:02:46]} 6. e3 {[%clk 0:02:39]}  Bg7 {[%clk 0:02:46]} 7. Bd3 {[%clk 0:02:37]}  Nxd2 {[%clk 0:02:36]} 8. Qxd2 {[%clk 0:02:33]}  O-O {[%clk 0:02:32]} 9. O-O-O {[%clk 0:02:16]}  c5 {[%clk 0:02:31]} 10. c3 {[%clk 0:01:54]}  d6 {[%clk 0:02:21]} 11. Bg3 {[%clk 0:01:48]}  Nd7 {[%clk 0:02:19]} 12. h4 {[%clk 0:01:36]}  Nf6 {[%clk 0:02:11]} 13. h5 {[%clk 0:01:36]}  Ne4 {[%clk 0:02:01]} 14. Bxe4 {[%clk 0:01:25]}  Bxe4 {[%clk 0:02:02]} 15. Ng5 {[%clk 0:01:24]}  Bxg2 {[%clk 0:02:02]} 16. Rh2 {[%clk 0:01:20]}  Bd5 {[%clk 0:01:57]} 17. e4 {[%clk 0:01:19]}  Bxa2 {[%clk 0:01:57]} 18. hxg6 {[%clk 0:01:10]}  hxg6 {[%clk 0:01:57]} 19. Rdh1 {[%clk 0:01:08]}  cxd4 {[%clk 0:01:21]} 20. f4 {[%clk 0:00:36]}  Re8 {[%clk 0:00:41]} 21. Rh8+ {[%clk 0:00:20]}  Bxh8 {[%clk 0:00:42]} 22. Rxh8+ {[%clk 0:00:19]}  Kxh8 {[%clk 0:00:42]} 23. Qh2+ {[%clk 0:00:19]}  Kg7 {[%clk 0:00:43]} 24. Qh7+ {[%clk 0:00:19]}  Kf6 {[%clk 0:00:43]} 25. Bh4 {[%clk 0:00:10]}  Qc7 {[%clk 0:00:36]} 26. f5 {[%clk 0:00:06]}  Ke5 {[%clk 0:00:18]} 27. Bg3+ {[%clk 0:00:06]}  Kf6 {[%clk 0:00:19]} 28. Bh4 {[%clk 0:00:05]}  Ke5 {[%clk 0:00:09]} 29. Qg7+ {[%clk 0:00:05]}  Kf4 {[%clk 0:00:09]} 30. Qxd4 {[%clk 0:00:05]}  Kg4 {[%clk 0:00:09]} 31. Qf2 {[%clk 0:00:05]}  d5 {[%clk 0:00:09]} 32. Qg2+ {[%clk 0:00:03]}  Kh5 {[%clk 0:00:09]} 33. Nf3 {[%clk 0:00:03]}  Qf4+ {[%clk 0:00:08]} 34. Kc2 {[%clk 0:00:03]}  Qxe4+ {[%clk 0:00:09]} 35. Kd2 {[%clk 0:00:03]}  Qf4+ {[%clk 0:00:09]} 36. Kc2 {[%clk 0:00:03]}  Qxf5+ {[%clk 0:00:07]} 37. Kd2 {[%clk 0:00:04]}  Qf4+ {[%clk 0:00:07]} 38. Kc2 {[%clk 0:00:03]}  d4 {[%clk 0:00:07]} 39. Bg5 {[%clk 0:00:04]}  Qf5+ {[%clk 0:00:04]} 40. Kc1 {[%clk 0:00:03]}  Qxf3 {[%clk 0:00:04]} 41. Qxf3+ {[%clk 0:00:03]}  Kxg5 {[%clk 0:00:05]} 42. Qg3+ {[%clk 0:00:02]}  Kf6 {[%clk 0:00:05]} 43. Qf4+ {[%clk 0:00:02]}  Kg7 {[%clk 0:00:06]} 44. Qxd4+ {[%clk 0:00:02]}  e5 {[%clk 0:00:06]} 45. Qh4 {[%clk 0:00:01]}  Be6 {[%clk 0:00:07]} 46. Qg3 {[%clk 0:00:01]}  Bf5 {[%clk 0:00:07]} 47. b4 {[%clk 0:00:02]}  e4 {[%clk 0:00:07]} 48. Kb2 {[%clk 0:00:03]}  e3 {[%clk 0:00:08]} 0-1


[Site "https://www.chess.com"]

[Event "Titled Tuesday Blitz November 29 Early 2022"]
[White "Wieczorek, Zbigniew"]
[Black "Korkmaz, Necmettin"]
[WhiteFideId "1102001"]
[BlackFideId "6303285"]
[WhiteElo "2305"]
[BlackElo "2094"]
[Result "0-1"]
[Round "03"]
[TimeControl "180+1"]
[Date "2022.11.30"]
[WhiteClock "0:00:44"]
[BlackClock "0:00:47"]

1. Nf3 {[%clk 0:03:00]}  d5 {[%clk 0:02:57]} 2. g3 {[%clk 0:02:52]}  Nf6 {[%clk 0:02:57]} 3. Bg2 {[%clk 0:02:52]}  Bf5 {[%clk 0:02:56]} 4. d3 {[%clk 0:02:51]}  e6 {[%clk 0:02:56]} 5. O-O {[%clk 0:02:51]}  c6 {[%clk 0:02:53]} 6. c4 {[%clk 0:02:51]}  h6 {[%clk 0:02:52]} 7. cxd5 {[%clk 0:02:51]}  exd5 {[%clk 0:02:52]} 8. Nc3 {[%clk 0:02:52]}  Nbd7 {[%clk 0:02:51]} 9. e4 {[%clk 0:02:51]}  dxe4 {[%clk 0:02:34]} 10. dxe4 {[%clk 0:02:52]}  Be6 {[%clk 0:02:33]} 11. Nd4 {[%clk 0:02:51]}  Bc4 {[%clk 0:02:32]} 12. Re1 {[%clk 0:02:51]}  Be7 {[%clk 0:02:24]} 13. e5 {[%clk 0:02:48]}  Nd5 {[%clk 0:02:23]} 14. Nxd5 {[%clk 0:02:42]}  Bxd5 {[%clk 0:02:23]} 15. Bxd5 {[%clk 0:02:42]}  cxd5 {[%clk 0:02:23]} 16. e6 {[%clk 0:02:43]}  Nf6 {[%clk 0:02:18]} 17. exf7+ {[%clk 0:02:41]}  Kxf7 {[%clk 0:02:19]} 18. Ne6 {[%clk 0:02:32]}  Qd7 {[%clk 0:02:17]} 19. Qd4 {[%clk 0:02:16]}  b6 {[%clk 0:02:11]} 20. b3 {[%clk 0:02:13]}  Rhe8 {[%clk 0:02:10]} 21. Bb2 {[%clk 0:02:13]}  Bd6 {[%clk 0:02:07]} 22. Nxg7 {[%clk 0:02:11]}  Rxe1+ {[%clk 0:02:02]} 23. Rxe1 {[%clk 0:02:11]}  Ng4 {[%clk 0:01:33]} 24. Ne6 {[%clk 0:02:04]}  Ne5 {[%clk 0:01:20]} 25. Qf4+ {[%clk 0:01:39]}  Kg6 {[%clk 0:01:04]} 26. Bxe5 {[%clk 0:01:40]}  Qxe6 {[%clk 0:01:03]} 27. Re3 {[%clk 0:01:03]}  Bc5 {[%clk 0:00:49]} 28. Rf3 {[%clk 0:00:44]}  Rf8 {[%clk 0:00:47]} 0-1


[Site "https://www.chess.com"]